fUST/lending_fUST_20241022
["ID","MTS","AMOUNT","RATE_DAILY","PERIOD"]
[340621853,1729545048641,-703.32,0.00016712,2]
[340621854,1729545048650,-1000.0,0.00016712,2]
[340621855,1729545048659,-1124.1,0.00016712,2]
[340621856,1729545048668,-1670.91,0.00016712,2]
[340621857,1729545048677,-1969.18,0.00016712,2]
[340621858,1729545048686,-508.64,0.00016712,2]
[340621859,1729545048695,-878.39,0.00016712,2]
[340621860,1729545048705,-1353.82,0.00016712,2]
[340621861,1729545048715,-11595.31,0.00016712,2]
[340621862,1729545048724,-500.0,0.00016712,2]
[340621863,1729545048733,-588.39,0.00016712,2]
[340621864,1729545048743,-500.0,0.00016712,2]
[340621865,1729545048766,-1689.08,0.00016712,2]
[340621866,1729545048776,-500.0,0.00016712,2]
[340621867,1729545048786,-414.9392584,0.00016712,2]
[340621868,1729545048795,-501.4254455,0.00016747,2]
[340621869,1729545048805,-500.0,0.00016747,2]
[340621870,1729545048814,-1000.0,0.00016747,2]
[340621871,1729545048823,-1000.0,0.00016747,2]
[340621872,1729545048832,-228.24448228,0.00016747,2]
[340621873,1729545048841,-500.0,0.00016773,2]
[340621874,1729545048851,-500.0,0.00016773,2]
[340621875,1729545048860,-207.42547338,0.00016773,2]
[340621876,1729545048870,-368.89393,0.00016773,2]
[340621877,1729545048878,-737.787859,0.00016773,2]
[340621878,1729545048888,-3200.0,0.00016787,2]
[340621879,1729545048897,-150.138,0.00016787,2]
[340621880,1729545048907,-167.092768,0.00016866,2]
[340621881,1729545048916,-1783.609174,0.00016866,2]
[340621882,1729545048925,-769.665395,0.00016866,2]
[340621883,1729545048934,-713.44367,0.00016866,2]
[340621884,1729545048943,-593.862889,0.00016866,2]
[340621885,1729545048952,-454.509428,0.00016866,2]
[340621886,1729545048962,-594.536392,0.00016866,2]
[340621887,1729545048971,-4427.6203108,0.0001691,2]
[340621888,1729545048980,-465.02413056,0.00016943,2]
[340621889,1729545048989,-500.0,0.00016973,2]
[340621890,1729545048999,-500.0,0.00016973,2]
[340621891,1729545049008,-500.0,0.00016973,2]
[340621892,1729545049017,-368.89393,0.0001698,2]
[340621893,1729545049026,-737.787859,0.0001698,2]
[340621894,1729545049035,-500.0,0.00016986,2]
[340621895,1729545049044,-716.82,0.00016986,2]
[340621896,1729545049053,-500.0,0.00016986,2]
[340621897,1729545049062,-643.71,0.00016986,2]
[340621898,1729545049072,-822.18,0.00016986,2]
[340621899,1729545049081,-656.67,0.00016986,2]
[340621900,1729545049090,-500.0,0.00016986,2]
[340621901,1729545049099,-500.0,0.00016986,2]
[340621902,1729545049108,-500.0,0.00016986,2]
[340621903,1729545049117,-500.0,0.00016986,2]
[340621904,1729545049126,-756.95,0.00016986,2]
[340621905,1729545049134,-1232.5,0.00016986,2]
[340621906,1729545049145,-623.41,0.00016986,2]
[340621907,1729545049155,-532.2,0.00016986,2]
[340621908,1729545049165,-500.0,0.00016986,2]
[340621909,1729545049175,-621.53,0.00016986,2]
[340621910,1729545049184,-564.09,0.00016986,2]
[340621911,1729545049193,-762.22,0.00016986,2]
[340621912,1729545049202,-500.0,0.00016986,2]
[340621913,1729545049211,-500.0,0.00016986,2]
[340621914,1729545049221,-1280.71,0.00016986,2]
[340621915,1729545049230,-500.0,0.00016986,2]
[340621916,1729545049239,-500.0,0.00016986,2]
[340621917,1729545049251,-1264.88,0.00016986,2]
[340621918,1729545049261,-653.73,0.00016986,2]
[340621919,1729545049272,-984.69,0.00016986,2]
[340621920,1729545049281,-671.37,0.00016986,2]
[340621921,1729545049291,-719.83,0.00016986,2]
[340621922,1729545049300,-500.0,0.00016986,2]
[340621923,1729545049310,-706.95,0.00016986,2]
[340621924,1729545049319,-500.0,0.00016986,2]
[340621925,1729545049329,-500.0,0.00016986,2]
[340621926,1729545049338,-840.03,0.00016986,2]
[340621927,1729545049348,-192.11865276,0.00016986,2]
[340621928,1729545049357,-449.70091309,0.00016986,2]
[340621929,1729545049367,-1001.81,0.00016986,2]
[340621930,1729545049376,-646.73,0.00016986,2]
[340621931,1729545049385,-500.0,0.00016986,2]
[340621932,1729545049394,-846.7,0.00016986,2]
[340621933,1729545049403,-500.0,0.00016986,2]
[340621934,1729545049412,-1196.47,0.00016986,2]
[340621935,1729545049421,-500.0,0.00016986,2]
[340621936,1729545049430,-1774.01,0.00016986,2]
[340621937,1729545049439,-546.23,0.00016986,2]
[340621938,1729545049448,-500.0,0.00016986,2]
[340621939,1729545049458,-1453.33,0.00016986,2]
[340621940,1729545049467,-500.0,0.00016986,2]
[340621941,1729545049477,-1077.25,0.00016986,2]
[340621942,1729545049487,-500.0,0.00016986,2]
[340621943,1729545049496,-1405.43,0.00016986,2]
[340621944,1729545049506,-1135.64,0.00016986,2]
[340621945,1729545049515,-500.0,0.00016986,2]
[340621946,1729545049524,-547.38,0.00016986,2]
[340621947,1729545049534,-844.9,0.00016986,2]
[340621948,1729545049543,-1025.04,0.00016986,2]
[340621949,1729545049553,-500.0,0.00016986,2]
[340621950,1729545049563,-500.0,0.00016986,2]
[340621951,1729545049572,-500.0,0.00016986,2]
[340621952,1729545049583,-746.14,0.00016986,2]
[340621953,1729545049593,-585.91,0.00016986,2]
[340621954,1729545049602,-500.0,0.00016986,2]
[340621955,1729545049612,-1109.21,0.00016986,2]
[340621956,1729545049621,-601.57,0.00016986,2]
[340621957,1729545049631,-332.57071855,0.00016986,2]
[340621958,1729545049640,-500.0,0.00016986,2]
[340621959,1729545049650,-1400.08,0.00016986,2]
[340621960,1729545049659,-500.0,0.00016986,2]
[340621961,1729545049668,-911.99,0.00016986,2]
[340621962,1729545049677,-1139.38,0.00016986,2]
[340621963,1729545049686,-500.0,0.00016986,2]
[340621964,1729545049695,-500.0,0.00016986,2]
[340621965,1729545049705,-1268.23,0.00016986,2]
[340621966,1729545049715,-500.0,0.00016986,2]
[340621967,1729545049724,-861.92,0.00016986,2]
[340621968,1729545049734,-1094.6,0.00016986,2]
[340621969,1729545049744,-500.0,0.00016986,2]
[340621970,1729545049754,-200.0,0.00016986,2]
[340621971,1729545049764,-546.61,0.00016986,2]
[340621972,1729545049773,-654.49,0.00016986,2]
[340621973,1729545049783,-500.0,0.00016986,2]
[340621974,1729545049793,-1553.61,0.00016986,2]
[340621975,1729545049802,-731.6,0.00016986,2]
[340621976,1729545049812,-1182.31,0.00016986,2]
[340621977,1729545049821,-582.64,0.00016986,2]
[340621978,1729545049830,-1196.56,0.00016986,2]
[340621979,1729545049839,-500.0,0.00016986,2]
[340621980,1729545049848,-535.21,0.00016986,2]
[340621981,1729545049858,-500.0,0.00016986,2]
[340621982,1729545049867,-1233.12,0.00016986,2]
[340621983,1729545049877,-2327.53,0.00016986,2]
[340621984,1729545049886,-500.0,0.00016986,2]
[340621985,1729545049895,-1198.8,0.00016986,2]
[340621986,1729545049904,-826.99,0.00016986,2]
[340621987,1729545049914,-502.67,0.00016986,2]
[340621988,1729545049923,-640.72,0.00016986,2]
[340621989,1729545049932,-2082.4,0.00016986,2]
[340621990,1729545049942,-1290.76,0.00016986,2]
[340621991,1729545049951,-500.0,0.00016986,2]
[340621992,1729545049960,-508.6,0.00016986,2]
[340621993,1729545049970,-549.01,0.00016986,2]
[340621994,1729545049979,-500.0,0.00016986,2]
[340621995,1729545049988,-856.99,0.00016986,2]
[340621996,1729545049998,-980.45,0.00016986,2]
[340621997,1729545050008,-700.68,0.00016986,2]
[340621998,1729545050017,-504.44,0.00016986,2]
[340621999,1729545050026,-500.0,0.00016986,2]
[340622000,1729545050035,-678.43,0.00016986,2]
[340622001,1729545050045,-500.0,0.00016986,2]
[340622002,1729545050054,-1064.75,0.00016986,2]
[340622003,1729545050064,-1047.18,0.00016986,2]
[340622004,1729545050073,-986.67,0.00016986,2]
[340622005,1729545050082,-500.0,0.00016986,2]
[340622006,1729545050091,-1775.0,0.00016986,2]
[340622007,1729545050101,-308.06412087,0.00016986,2]
[340622008,1729545050110,-649.73,0.00016986,2]
[340622009,1729545050119,-527.34,0.00016986,2]
[340622010,1729545050128,-640.6,0.00016986,2]
[340622011,1729545050137,-1244.86,0.00016986,2]
[340622012,1729545050147,-500.0,0.00016986,2]
[340622013,1729545050156,-930.93,0.00016986,2]
[340622014,1729545050165,-594.52,0.00016986,2]
[340622015,1729545050174,-734.44,0.00016986,2]
[340622016,1729545050183,-500.0,0.00016986,2]
[340622017,1729545050193,-1076.73,0.00016986,2]
[340622018,1729545050202,-500.0,0.00016986,2]
[340622019,1729545050211,-624.78,0.00016986,2]
[340622020,1729545050221,-717.87,0.00016986,2]
[340622021,1729545050231,-500.0,0.00016986,2]
[340622022,1729545050241,-1490.93,0.00016986,2]
[340622023,1729545050251,-500.0,0.00016986,2]
[340622024,1729545050260,-727.75,0.00016986,2]
[340622025,1729545050273,-500.0,0.00016986,2]
[340622026,1729545050283,-500.0,0.00016986,2]
[340622027,1729545050293,-500.0,0.00016986,2]
[340622028,1729545050303,-500.0,0.00016986,2]
[340622029,1729545050312,-500.0,0.00016986,2]
[340622030,1729545050321,-804.06,0.00016986,2]
[340622031,1729545050330,-837.88,0.00016986,2]
[340622032,1729545050341,-631.39,0.00016986,2]
[340622033,1729545050350,-962.48,0.00016986,2]
[340622034,1729545050360,-536.0,0.00016986,2]
[340622035,1729545050369,-511.51,0.00016986,2]
[340622036,1729545050378,-1045.52,0.00016986,2]
[340622037,1729545050387,-500.0,0.00016986,2]
[340622038,1729545050397,-865.03,0.00016986,2]
[340622039,1729545050406,-500.0,0.00016986,2]
[340622040,1729545050415,-552.68,0.00016986,2]
[340622041,1729545050424,-641.2,0.00016986,2]
[340622042,1729545050433,-937.68,0.00016986,2]
[340622043,1729545050443,-500.0,0.00016986,2]
[340622044,1729545050453,-1691.62,0.00016986,2]
[340622045,1729545050462,-732.8,0.00016986,2]
[340622046,1729545050471,-500.0,0.00016986,2]
[340622047,1729545050481,-903.98,0.00016986,2]
[340622048,1729545050490,-538.75,0.00016986,2]
[340622049,1729545050499,-500.0,0.00016986,2]
[340622050,1729545050508,-1498.89,0.00016986,2]
[340622051,1729545050518,-784.23,0.00016986,2]
[340622052,1729545050528,-29185.18,0.00016986,2]
[340622053,1729545050537,-500.0,0.00016986,2]
[340622054,1729545050547,-622.0,0.00016986,2]
[340622055,1729545050556,-930.01,0.00016986,2]
[340622056,1729545050566,-500.0,0.00016986,2]
[340622057,1729545050576,-500.0,0.00016986,2]
[340622058,1729545050586,-957.29,0.00016986,2]
[340622059,1729545050595,-5396.02,0.00016986,2]
[340622060,1729545050605,-893.55,0.00016986,2]
[340622061,1729545050614,-500.0,0.00016986,2]
[340622062,1729545050624,-936.56,0.00016986,2]
[340622063,1729545050633,-500.0,0.00016986,2]
[340622064,1729545050643,-629.49,0.00016986,2]
[340622065,1729545050652,-500.0,0.00016986,2]
[340622066,1729545050662,-500.0,0.00016986,2]
[340622067,1729545050671,-500.0,0.00016986,2]
[340622068,1729545050681,-500.0,0.00016986,2]
[340622069,1729545050690,-1715.21,0.00016986,2]
[340622070,1729545050699,-659.01,0.00016986,2]
[340622071,1729545050710,-1400.08,0.00016986,2]
[340622072,1729545050720,-298.43861641,0.00016986,2]
[340622073,1729545050729,-575.55,0.00016986,2]
[340622074,1729545050739,-577.19,0.00016986,2]
[340622075,1729545050749,-1012.69,0.00016986,2]
[340622076,1729545050759,-1968.89,0.00016986,2]
[340622077,1729545050768,-2487.72,0.00016986,2]
[340622078,1729545050778,-733.45,0.00016986,2]
[340622079,1729545050787,-1253.22,0.00016986,2]
[340622080,1729545050796,-524.68,0.00016986,2]
[340622081,1729545050805,-651.16,0.00016986,2]
[340622082,1729545050815,-634.45,0.00016986,2]
[340622083,1729545050824,-611.19,0.00016986,2]
[340622084,1729545050833,-909.9,0.00016986,2]
[340622085,1729545050842,-548.75,0.00016986,2]
[340622086,1729545050851,-500.0,0.00016986,2]
[340622087,1729545050860,-906.83,0.00016986,2]
[340622088,1729545050870,-937.76,0.00016986,2]
[340622089,1729545050880,-1310.41,0.00016986,2]
[340622090,1729545050890,-500.0,0.00016986,2]
[340622091,1729545050899,-531.5,0.00016986,2]
[340622092,1729545050908,-1189.76,0.00016986,2]
[340622093,1729545050917,-639.01,0.00016986,2]
[340622094,1729545050927,-2011.75,0.00016986,2]
[340622095,1729545050936,-500.0,0.00016986,2]
[340622096,1729545050945,-500.0,0.00016986,2]
[340622097,1729545050955,-1340.15,0.00016986,2]
[340622098,1729545050964,-500.0,0.00016986,2]
[340622099,1729545050973,-1235.59,0.00016986,2]
[340622100,1729545050983,-500.0,0.00016986,2]
[340622101,1729545050993,-839.49,0.00016986,2]
[340622102,1729545051003,-500.0,0.00016986,2]
[340622103,1729545051012,-1271.38,0.00016986,2]
[340622104,1729545051022,-500.0,0.00016986,2]
[340622105,1729545051031,-500.0,0.00016986,2]
[340622106,1729545051040,-1024.97,0.00016986,2]
[340622107,1729545051049,-901.94,0.00016986,2]
[340622108,1729545051058,-500.0,0.00016986,2]
[340622109,1729545051068,-1118.99,0.00016986,2]
[340622110,1729545051077,-500.0,0.00016986,2]
[340622111,1729545051086,-500.0,0.00016986,2]
[340622112,1729545051096,-899.82,0.00016986,2]
[340622113,1729545051105,-512.45,0.00016986,2]
[340622114,1729545051115,-936.25,0.00016986,2]
[340622115,1729545051124,-500.0,0.00016986,2]
[340622116,1729545051133,-2173.03,0.00016986,2]
[340622117,1729545051142,-894.41,0.00016986,2]
[340622118,1729545051151,-500.0,0.00016986,2]
[340622119,1729545051160,-500.0,0.00016986,2]
[340622120,1729545051169,-715.67,0.00016986,2]
[340622121,1729545051179,-2325.7,0.00016986,2]
[340622122,1729545051189,-513.6,0.00016986,2]
[340622123,1729545051199,-500.0,0.00016986,2]
[340622124,1729545051208,-1182.39,0.00016986,2]
[340622125,1729545051217,-500.0,0.00016986,2]
[340622126,1729545051227,-1172.58,0.00016986,2]
[340622127,1729545051237,-1323.26,0.00016986,2]
[340622128,1729545051246,-533.03,0.00016986,2]
[340622129,1729545051256,-1306.87,0.00016986,2]
[340622130,1729545051270,-1051.76,0.00016986,2]
[340622131,1729545051279,-2948.56,0.00016986,2]
[340622132,1729545051289,-576.83,0.00016986,2]
[340622133,1729545051298,-500.0,0.00016986,2]
[340622134,1729545051309,-1427.46,0.00016986,2]
[340622135,1729545051318,-744.49,0.00016986,2]
[340622136,1729545051327,-807.28,0.00016986,2]
[340622137,1729545051338,-955.82,0.00016986,2]
[340622138,1729545051347,-1666.78,0.00016986,2]
[340622139,1729545051356,-1892.8,0.00016986,2]
[340622140,1729545051366,-767.24,0.00016986,2]
[340622141,1729545051376,-2175.05,0.00016986,2]
[340622142,1729545051385,-1583.14,0.00016986,2]
[340622143,1729545051394,-612.74,0.00016986,2]
[340622144,1729545051403,-1258.88,0.00016986,2]
[340622145,1729545051412,-516.65,0.00016986,2]
[340622146,1729545051421,-9734.74,0.00016986,2]
[340622147,1729545051431,-667.57,0.00016986,2]
[340622148,1729545051440,-500.0,0.00016986,2]
[340622149,1729545051450,-772.05,0.00016986,2]
[340622150,1729545051459,-910.36,0.00016986,2]
[340622151,1729545051469,-1336.69,0.00016986,2]
[340622152,1729545051478,-935.03,0.00016986,2]
[340622153,1729545051488,-1222.8,0.00016986,2]
[340622154,1729545051498,-1295.65,0.00016986,2]
[340622155,1729545051508,-500.0,0.00016986,2]
[340622156,1729545051517,-528.65,0.00016986,2]
[340622157,1729545051526,-500.0,0.00016986,2]
[340622158,1729545051535,-869.11,0.00016986,2]
[340622159,1729545051545,-1052.15,0.00016986,2]
[340622160,1729545051554,-859.86,0.00016986,2]
[340622161,1729545051564,-500.0,0.00016986,2]
[340622162,1729545051785,-825.86,0.00016986,2]
[340622163,1729545051800,-955.62,0.00016986,2]
[340622164,1729545051809,-3239.39,0.00016986,2]
[340622165,1729545051819,-1141.4,0.00016986,2]
[340622166,1729545051829,-5290.27,0.00016986,2]
[340622167,1729545051838,-703.32,0.00016986,2]
[340622168,1729545051848,-1000.0,0.00016986,2]
[340622169,1729545051857,-1124.1,0.00016986,2]
[340622170,1729545051867,-1670.91,0.00016986,2]
[340622171,1729545051876,-1969.18,0.00016986,2]
[340622172,1729545051885,-508.64,0.00016986,2]
[340622173,1729545051894,-878.39,0.00016986,2]
[340622174,1729545051903,-1353.82,0.00016986,2]
[340622175,1729545051913,-11595.31,0.00016986,2]
[340622176,1729545051922,-500.0,0.00016986,2]
[340622177,1729545051931,-588.39,0.00016986,2]
[340622178,1729545051941,-500.0,0.00016986,2]
[340622179,1729545051950,-1689.08,0.00016986,2]
[340622180,1729545051959,-500.0,0.00016986,2]
[340622181,1729545051968,-1000.0,0.00017,17]
[340622182,1729545051978,-1000.0,0.00017047,2]
[340622183,1729545051987,-1000.0,0.00017047,2]
[340622184,1729545051997,-600.0,0.00017096,2]
[340622185,1729545052006,-232.4912291,0.00017123,2]
[340622186,1729545052015,-1500.0,0.00017147,2]
[340622187,1729545052024,-1500.0,0.00017147,2]
[340622188,1729545052033,-368.89393,0.00017187,2]
[340622189,1729545052042,-737.787859,0.00017187,2]
[340622190,1729545052051,-500.0,0.00017211,2]
[340622191,1729545052060,-1000.0,0.00017247,2]
[340622192,1729545052069,-1000.0,0.00017247,2]
[340622193,1729545052078,-1000.0,0.00017247,2]
[340622194,1729545052088,-420.0,0.00017254,2]
[340622195,1729545052097,-500.0,0.0001726,2]
[340622196,1729545052106,-716.82,0.0001726,2]
[340622197,1729545052114,-500.0,0.0001726,2]
[340622198,1729545052123,-643.71,0.0001726,2]
[340622199,1729545052133,-822.18,0.0001726,2]
[340622200,1729545052142,-656.67,0.0001726,2]
[340622201,1729545052151,-500.0,0.0001726,2]
[340622202,1729545052160,-500.0,0.0001726,2]
[340622203,1729545052170,-500.0,0.0001726,2]
[340622204,1729545052179,-500.0,0.0001726,2]
[340622205,1729545052188,-756.95,0.0001726,2]
[340622206,1729545052197,-1232.5,0.0001726,2]
[340622207,1729545052206,-623.41,0.0001726,2]
[340622208,1729545052215,-532.2,0.0001726,2]
[340622209,1729545052224,-500.0,0.0001726,2]
[340622210,1729545052234,-621.53,0.0001726,2]
[340622211,1729545052243,-564.09,0.0001726,2]
[340622212,1729545052253,-762.22,0.0001726,2]
[340622213,1729545052264,-500.0,0.0001726,2]
[340622214,1729545052273,-500.0,0.0001726,2]
[340622215,1729545052282,-1280.71,0.0001726,2]
[340622216,1729545052292,-500.0,0.0001726,2]
[340622217,1729545052300,-500.0,0.0001726,2]
[340622218,1729545052309,-1264.88,0.0001726,2]
[340622219,1729545052318,-653.73,0.0001726,2]
[340622220,1729545052327,-984.69,0.0001726,2]
[340622221,1729545052336,-671.37,0.0001726,2]
[340622222,1729545052346,-719.83,0.0001726,2]
[340622223,1729545052355,-500.0,0.0001726,2]
[340622224,1729545052365,-706.95,0.0001726,2]
[340622225,1729545052374,-500.0,0.0001726,2]
[340622226,1729545052383,-500.0,0.0001726,2]
[340622227,1729545052393,-840.03,0.0001726,2]
[340622228,1729545052403,-2500.0,0.0001726,2]
[340622229,1729545052412,-1001.81,0.0001726,2]
[340622230,1729545052421,-646.73,0.0001726,2]
[340622231,1729545052430,-500.0,0.0001726,2]
[340622232,1729545052439,-846.7,0.0001726,2]
[340622233,1729545052449,-500.0,0.0001726,2]
[340622234,1729545052458,-1196.47,0.0001726,2]
[340622235,1729545052467,-500.0,0.0001726,2]
[340622236,1729545052476,-1774.01,0.0001726,2]
[340622237,1729545052485,-546.23,0.0001726,2]
[340622238,1729545052496,-500.0,0.0001726,2]
[340622239,1729545052505,-1453.33,0.0001726,2]
[340622240,1729545052515,-500.0,0.0001726,2]
[340622241,1729545052524,-1077.25,0.0001726,2]
[340622242,1729545052533,-500.0,0.0001726,2]
[340622243,1729545052543,-1405.43,0.0001726,2]
[340622244,1729545052552,-1135.64,0.0001726,2]
[340622245,1729545052562,-500.09661037,0.0001726,2]
[340622246,1729545052571,-547.38,0.0001726,2]
[340622247,1729545052581,-844.9,0.0001726,2]
[340622248,1729545052590,-1025.04,0.0001726,2]
[340622249,1729545052600,-500.0,0.0001726,2]
[340622250,1729545052609,-500.0,0.0001726,2]
[340622251,1729545052618,-500.0,0.0001726,2]
[340622252,1729545052627,-746.14,0.0001726,2]
[340622253,1729545052636,-585.91,0.0001726,2]
[340622254,1729545052645,-500.0,0.0001726,2]
[340622255,1729545052654,-1109.21,0.0001726,2]
[340622256,1729545052663,-601.57,0.0001726,2]
[340622257,1729545052672,-500.0,0.0001726,2]
[340622258,1729545052681,-1400.08,0.0001726,2]
[340622259,1729545052690,-500.0,0.0001726,2]
[340622260,1729545052699,-911.99,0.0001726,2]
[340622261,1729545052710,-1139.38,0.0001726,2]
[340622262,1729545052719,-500.0,0.0001726,2]
[340622263,1729545052729,-500.0,0.0001726,2]
[340622264,1729545052739,-1268.23,0.0001726,2]
[340622265,1729545052751,-500.0,0.0001726,2]
[340622266,1729545052761,-861.92,0.0001726,2]
[340622267,1729545052769,-1094.6,0.0001726,2]
[340622268,1729545052778,-500.0,0.0001726,2]
[340622269,1729545052788,-200.0,0.0001726,2]
[340622270,1729545052798,-546.61,0.0001726,2]
[340622271,1729545052807,-654.49,0.0001726,2]
[340622272,1729545052815,-500.0,0.0001726,2]
[340622273,1729545052825,-1553.61,0.0001726,2]
[340622274,1729545052834,-731.6,0.0001726,2]
[340622275,1729545052843,-1182.31,0.0001726,2]
[340622276,1729545052852,-582.64,0.0001726,2]
[340622277,1729545052861,-1196.56,0.0001726,2]
[340622278,1729545052870,-500.0,0.0001726,2]
[340622279,1729545052879,-535.21,0.0001726,2]
[340622280,1729545052888,-500.0,0.0001726,2]
[340622281,1729545052897,-1233.12,0.0001726,2]
[340622282,1729545052907,-2327.53,0.0001726,2]
[340622283,1729545052916,-500.0,0.0001726,2]
[340622284,1729545052925,-1198.8,0.0001726,2]
[340622285,1729545052934,-826.99,0.0001726,2]
[340622286,1729545052943,-502.67,0.0001726,2]
[340622287,1729545052953,-640.72,0.0001726,2]
[340622288,1729545052963,-2082.4,0.0001726,2]
[340622289,1729545052972,-1290.76,0.0001726,2]
[340622290,1729545052981,-500.0,0.0001726,2]
[340622291,1729545052991,-508.6,0.0001726,2]
[340622292,1729545053000,-549.01,0.0001726,2]
[340622293,1729545053010,-500.0,0.0001726,2]
[340622294,1729545053019,-856.99,0.0001726,2]
[340622295,1729545053027,-980.45,0.0001726,2]
[340622296,1729545053036,-700.68,0.0001726,2]
[340622297,1729545053045,-504.44,0.0001726,2]
[340622298,1729545053054,-500.0,0.0001726,2]
[340622299,1729545053064,-678.43,0.0001726,2]
[340622300,1729545053073,-500.0,0.0001726,2]
[340622301,1729545053083,-1064.75,0.0001726,2]
[340622302,1729545053092,-1047.18,0.0001726,2]
[340622303,1729545053101,-986.67,0.0001726,2]
[340622304,1729545053110,-500.0,0.0001726,2]
[340622305,1729545053119,-1775.0,0.0001726,2]
[340622306,1729545053128,-649.73,0.0001726,2]
[340622307,1729545053137,-527.34,0.0001726,2]
[340622308,1729545053146,-640.6,0.0001726,2]
[340622309,1729545053155,-1244.86,0.0001726,2]
[340622310,1729545053164,-500.0,0.0001726,2]
[340622311,1729545053173,-930.93,0.0001726,2]
[340622312,1729545053182,-594.52,0.0001726,2]
[340622313,1729545053191,-734.44,0.0001726,2]
[340622314,1729545053201,-500.0,0.0001726,2]
[340622315,1729545053210,-1076.73,0.0001726,2]
[340622316,1729545053219,-500.0,0.0001726,2]
[340622317,1729545053228,-624.78,0.0001726,2]
[340622318,1729545053237,-717.87,0.0001726,2]
[340622319,1729545053249,-500.0,0.0001726,2]
[340622320,1729545053261,-1490.93,0.0001726,2]
[340622321,1729545053273,-500.0,0.0001726,2]
[340622322,1729545053282,-727.75,0.0001726,2]
[340622323,1729545053291,-500.0,0.0001726,2]
[340622324,1729545053300,-500.0,0.0001726,2]
[340622325,1729545053310,-500.0,0.0001726,2]
[340622326,1729545053319,-500.0,0.0001726,2]
[340622327,1729545053328,-500.0,0.0001726,2]
[340622328,1729545053338,-804.06,0.0001726,2]
[340622329,1729545053347,-837.88,0.0001726,2]
[340622330,1729545053357,-631.39,0.0001726,2]
[340622331,1729545053366,-962.48,0.0001726,2]
[340622332,1729545053375,-536.0,0.0001726,2]
[340622333,1729545053384,-511.51,0.0001726,2]
[340622334,1729545053393,-1045.52,0.0001726,2]
[340622335,1729545053402,-500.0,0.0001726,2]
[340622336,1729545053411,-865.03,0.0001726,2]
[340622337,1729545053420,-500.0,0.0001726,2]
[340622338,1729545053430,-552.68,0.0001726,2]
[340622339,1729545053440,-641.2,0.0001726,2]
[340622340,1729545053449,-937.68,0.0001726,2]
[340622341,1729545053459,-500.0,0.0001726,2]
[340622342,1729545053468,-1691.62,0.0001726,2]
[340622343,1729545053477,-732.8,0.0001726,2]
[340622344,1729545053487,-500.0,0.0001726,2]
[340622345,1729545053496,-903.98,0.0001726,2]
[340622346,1729545053506,-538.75,0.0001726,2]
[340622347,1729545053515,-500.0,0.0001726,2]
[340622348,1729545053524,-784.23,0.0001726,2]
[340622349,1729545053533,-1498.89,0.0001726,2]
[340622350,1729545053542,-29185.18,0.0001726,2]
[340622351,1729545053551,-500.0,0.0001726,2]
[340622352,1729545053560,-622.0,0.0001726,2]